fUSD/lending_fUSD_20251217
["ID","MTS","AMOUNT","RATE_DAILY","PERIOD"]
[398929709,1766002250834,-500.0,0.00016996,2]
[398929710,1766002250844,-500.0,0.00016996,2]
[398929711,1766002250853,-500.0,0.00016996,2]
[398929712,1766002250862,-500.0,0.00016996,2]
[398929713,1766002250871,-500.0,0.00016996,2]
[398929714,1766002250881,-500.0,0.00016996,2]
[398929715,1766002250890,-500.0,0.00016996,2]
[398929716,1766002250899,-500.0,0.00016996,2]
[398929717,1766002250908,-500.0,0.00016996,2]
[398929718,1766002250918,-439.66160945,0.00016996,2]
[398929719,1766002250927,-482.62861768,0.00016996,2]
[398929720,1766002250937,-358.93,0.00016996,2]
[398929721,1766002250946,-500.0,0.00016996,2]
[398929722,1766002250955,-500.0,0.00016996,2]
[398929723,1766002250964,-500.0,0.00016996,2]
[398929724,1766002250973,-500.0,0.00016996,2]
[398929725,1766002250983,-2050.6460955,0.00016997,2]
[398929726,1766002250994,-500.0,0.00016997,2]
[398929727,1766002251003,-268520.8138018,0.00016997,2]
[398929728,1766002251012,-500.0,0.00016997,2]
[398929729,1766002251022,-1362.39,0.00016997,2]
[398929730,1766002251031,-500.0,0.00016997,2]
[398929731,1766002251040,-1565.1463979,0.00016997,2]
[398929732,1766002251050,-504.60053044,0.00016997,2]
[398929733,1766002251059,-500.0,0.00016997,2]
[398929734,1766002251068,-500.0,0.00016997,2]
[398929735,1766002251078,-534872.3393778,0.00016997,2]
[398929736,1766002251087,-805147.2401646,0.00016997,2]
[398929737,1766002251097,-500.0,0.00016997,2]
[398929738,1766002251106,-500.0,0.00016997,2]
[398929739,1766002251116,-151.0,0.00016997,2]
[398929740,1766002251125,-269.251734,0.00016997,2]
[398929741,1766002251135,-352.3445417,0.00016997,2]
[398929742,1766002251144,-151.0,0.00016997,2]
[398929743,1766002251154,-151.0,0.00016997,2]
[398929744,1766002251163,-151.0,0.00016997,2]
[398929745,1766002251172,-255.307319,0.00016997,2]
[398929746,1766002251182,-151.0,0.00016997,2]
[398929747,1766002251191,-151.0,0.00016997,2]
[398929748,1766002251201,-235.623244,0.00016997,2]
[398929749,1766002251210,-235.623244,0.00016997,2]
[398929750,1766002251219,-235.623244,0.00016997,2]
[398929751,1766002251228,-235.623244,0.00016997,2]
[398929752,1766002251238,-6151.9382862,0.00016997,2]
[398929753,1766002251248,-151.0,0.00016997,2]
[398929754,1766002251258,-151.0,0.00016997,2]
[398929755,1766002251267,-151.0,0.00016997,2]
[398929756,1766002251276,-151.0,0.00016997,2]
[398929757,1766002251286,-178.695921,0.00016997,2]
[398929758,1766002251295,-178.695921,0.00016997,2]
[398929759,1766002251306,-500.0,0.00016998,2]
[398929760,1766002251315,-500.0,0.00016999,2]
[398929761,1766002251325,-422.65917297,0.00016999,2]
[398929762,1766002251335,-1362.39,0.00016999,2]
[398929763,1766002251344,-1362.39,0.00016999,2]
[398929764,1766002251354,-1362.39,0.00016999,2]
[398929765,1766002251363,-1362.39,0.00016999,2]
[398929766,1766002251372,-1362.39,0.00016999,2]
[398929767,1766002251382,-1362.39,0.00016999,2]
[398929768,1766002251391,-1362.39,0.00016999,2]
[398929769,1766002251405,-1362.39,0.00016999,2]
[398929770,1766002251415,-1362.39,0.00016999,2]
[398929771,1766002251425,-1362.39,0.00016999,2]
[398929772,1766002251434,-1362.39,0.00016999,2]
[398929773,1766002251444,-1362.39,0.00016999,2]
[398929774,1766002251453,-1362.39,0.00016999,2]
[398929775,1766002251463,-1362.39,0.00016999,2]
[398929776,1766002251473,-1362.39,0.00016999,2]
[398929777,1766002251482,-1362.39,0.00016999,2]
[398929778,1766002251492,-1362.55816268,0.00016999,2]
[398929779,1766002251501,-499.99999999,0.00016999,2]
[398929780,1766002251511,-500.0,0.00016999,2]
[398929781,1766002251520,-500.0,0.00016999,2]
[398929782,1766002251530,-500.0,0.00016999,2]
[398929783,1766002251539,-500.0,0.00016999,2]
[398929784,1766002251549,-500.0,0.00016999,2]
[398929785,1766002251558,-500.0,0.00016999,2]
[398929786,1766002251568,-253.84521103,0.00016999,2]
[398929787,1766002251577,-500.0,0.00016999,2]
[398929788,1766002251586,-500.0,0.00016999,2]
[398929789,1766002251596,-500.0,0.00016999,2]
[398929790,1766002251605,-500.0,0.00016999,2]
[398929791,1766002251614,-500.0,0.00016999,2]
[398929792,1766002251624,-500.0,0.00016999,2]
[398929793,1766002251633,-500.0,0.00016999,2]
[398929794,1766002251642,-500.0,0.00016999,2]
[398929795,1766002251652,-500.0,0.00016999,2]
[398929796,1766002251661,-500.0,0.00016999,2]
[398929797,1766002251671,-500.0,0.00016999,2]
[398929798,1766002251680,-500.0,0.00016999,2]
[398929799,1766002251689,-211.9059115,0.00016999,2]
[398929800,1766002251698,-547.57611189,0.00016999,2]
[398929801,1766002251707,-500.0,0.00016999,2]
[398929802,1766002251717,-500.0,0.00016999,2]
[398929803,1766002251944,-500.0,0.00016999,2]
[398929804,1766002251982,-500.0,0.00016999,2]
[398929805,1766002251992,-500.0,0.00016999,2]
[398929806,1766002252001,-500.0,0.00016999,2]
[398929807,1766002252011,-500.0,0.00016999,2]
[398929808,1766002252021,-500.0,0.00016999,2]
[398929809,1766002252031,-500.0,0.00016999,2]
[398929810,1766002252041,-500.0,0.00016999,2]
[398929811,1766002252050,-500.0,0.00016999,2]
[398929812,1766002252059,-3974062.51802432,0.00017,2]
[398929813,1766002253238,-3593.78780218,0.00017,2]
[398929814,1766002253251,-499.98,0.00017,2]
[398929815,1766002253276,-500.0,0.00013698,2]
[398929816,1766002253286,-846.99999996,0.00017,2]
[398929817,1766002253719,-500.0,0.00013698,2]
[398929818,1766002253728,-500.0,0.00013698,2]
[398929819,1766002253737,-500.0,0.00013698,2]
[398929820,1766002253747,-279.0889974,0.00013847,2]
[398929821,1766002253756,-500.0,0.00014297,2]
[398929822,1766002253765,-500.0,0.00014571,2]
[398929823,1766002253774,-500.0,0.00014845,2]
[398929824,1766002253784,-500.0,0.00015119,2]
[398929825,1766002253793,-178.695921,0.00016997,2]
[398929826,1766002253802,-624272.99221604,0.00017,2]
[398929827,1766002253811,-7112087.54448556,0.00017,2]
[398929828,1766002253849,-332.13228803,0.00017,2]
[398929829,1766002253860,-1427.5027801,0.00017,2]
[398929830,1766002253871,-1059.80161734,0.00017,2]
[398929831,1766002253881,-323.46098281,0.00017,2]
[398929832,1766002253892,-6315.3454475,0.00017,2]
[398929833,1766002253903,-21032.49278182,0.00017,2]
[398929834,1766002253914,-467.97099624,0.00017,2]
[398929835,1766002253925,-949.309992,0.00017,2]
[398929836,1766002253945,-19998.131418,0.00017,2]
[398929837,1766002253970,-4480.8035198,0.00017,2]
[398929838,1766002254001,-661.37432,0.00017,2]
[398929839,1766002254305,-178.695921,0.00016997,2]
[398929840,1766002254314,-78.72248005,0.00017,2]
[398929841,1766002254325,-294.77570131,0.00017,2]
[398929842,1766002254336,-6120.34283461,0.00017,2]
[398929843,1766002254350,-2934.56041804,0.00017,2]
[398929844,1766002254361,-1801.66904595,0.00017,2]
[398929845,1766002254372,-528380.29577604,0.00017,2]
[398929846,1766002254381,-250.0,0.00017,2]
[398929847,1766002254390,-2000.0,0.00017,2]
[398929848,1766002254403,-151.0,0.00017,2]
[398929849,1766002254412,-151.0,0.00017,2]
[398929850,1766002254421,-151.0,0.00017,2]
[398929851,1766002254430,-151.0,0.00017,2]
[398929852,1766002254440,-151.0,0.00017,2]
[398929853,1766002254449,-251.199987,0.00017,2]
[398929854,1766002254458,-151.0,0.00017,2]
[398929855,1766002254468,-151.0,0.00017,2]
[398929856,1766002254477,-151.0,0.00017,2]
[398929857,1766002254486,-151.0,0.00017,2]
[398929858,1766002254495,-151.0,0.00017,2]
[398929859,1766002254504,-151.0,0.00017,2]
[398929860,1766002254513,-151.0,0.00017,2]
[398929861,1766002254522,-151.0,0.00017,2]
[398929862,1766002254531,-151.0,0.00017,2]
[398929863,1766002254541,-151.0,0.00017,2]
[398929864,1766002254550,-151.0,0.00017,2]
[398929865,1766002254558,-151.0,0.00017,2]
[398929866,1766002254568,-151.0,0.00017,2]
[398929867,1766002254577,-284.063192,0.00017,2]
[398929868,1766002254586,-321.728755,0.00017,2]
[398929869,1766002254595,-321.728755,0.00017,2]
[398929870,1766002254604,-151.0,0.00017,2]
[398929871,1766002254613,-151.0,0.00017,2]
[398929872,1766002254622,-321.728755,0.00017,2]
[398929873,1766002254631,-321.728755,0.00017,2]
[398929874,1766002254640,-321.728755,0.00017,2]
[398929875,1766002254649,-321.728755,0.00017,2]
[398929876,1766002254659,-321.728755,0.00017,2]
[398929877,1766002254668,-321.728755,0.00017,2]
[398929878,1766002254678,-151.0,0.00017,2]
[398929879,1766002254687,-476.48363483,0.00017,2]
[398929880,1766002254696,-151.0,0.00017,2]
[398929881,1766002254706,-151.0,0.00017,2]
[398929882,1766002254716,-151.0,0.00017,2]
[398929883,1766002254726,-151.0,0.00017,2]
[398929884,1766002254735,-151.0,0.00017,2]
[398929885,1766002254745,-151.0,0.00017,2]
[398929886,1766002254754,-151.0,0.00017,2]
[398929887,1766002254764,-637.362785,0.00017,2]
[398929888,1766002254773,-637.362785,0.00017,2]
[398929889,1766002254782,-151.0,0.00017,2]
[398929890,1766002254792,-637.362785,0.00017,2]
[398929891,1766002254806,-637.362785,0.00017,2]
[398929892,1766002254815,-637.362785,0.00017,2]
[398929893,1766002254824,-637.362785,0.00017,2]
[398929894,1766002254833,-637.362785,0.00017,2]
[398929895,1766002254843,-637.362785,0.00017,2]
[398929896,1766002254852,-161.556832,0.00017,2]
[398929897,1766002254861,-151.0,0.00017,2]
[398929898,1766002254871,-151.0,0.00017,2]
[398929899,1766002254881,-151.0,0.00017,2]
[398929900,1766002254890,-151.0,0.00017,2]
[398929901,1766002254900,-265.748199,0.00017,2]
[398929902,1766002254909,-628.642345,0.00017,2]
[398929903,1766002254919,-628.642345,0.00017,2]
[398929904,1766002254929,-628.642345,0.00017,2]
[398929905,1766002254939,-628.642345,0.00017,2]
[398929906,1766002254948,-628.642345,0.00017,2]
[398929907,1766002254958,-628.642345,0.00017,2]
[398929908,1766002254967,-628.642345,0.00017,2]
[398929909,1766002254976,-628.642345,0.00017,2]
[398929910,1766002254985,-151.0,0.00017,2]
[398929911,1766002254998,-151.0,0.00017,2]
[398929912,1766002255008,-151.0,0.00017,2]
[398929913,1766002255017,-151.0,0.00017,2]
[398929914,1766002255026,-151.0,0.00017,2]
[398929915,1766002255036,-151.0,0.00017,2]
[398929916,1766002255045,-172.496934,0.00017,2]
[398929917,1766002255055,-300.0,0.00017,3]
[398929918,1766002255064,-300.0,0.00017,3]
[398929919,1766002255074,-300.0,0.00017,3]
[398929920,1766002255084,-300.0,0.00017,3]
[398929921,1766002255095,-300.0,0.00017,3]
[398929922,1766002255107,-235.623244,0.00017,2]
[398929923,1766002255118,-235.623244,0.00017,2]
[398929924,1766002255129,-235.623244,0.00017,2]
[398929925,1766002255139,-235.623244,0.00017,2]
[398929926,1766002255149,-235.623244,0.00017,2]
[398929927,1766002255159,-235.623244,0.00017,2]
[398929928,1766002255170,-235.623244,0.00017,2]
[398929929,1766002255180,-235.623244,0.00017,2]
[398929930,1766002255190,-151.0,0.00017,2]
[398929931,1766002255199,-151.0,0.00017,2]
[398929932,1766002255208,-151.0,0.00017,2]
[398929933,1766002255218,-151.0,0.00017,2]
[398929934,1766002255228,-151.0,0.00017,2]
[398929935,1766002255237,-151.0,0.00017,2]
[398929936,1766002255247,-248.941271,0.00017,2]
[398929937,1766002255257,-178.695921,0.00017,2]
[398929938,1766002255266,-178.695921,0.00017,2]
[398929939,1766002255276,-178.695921,0.00017,2]
[398929940,1766002255286,-178.695921,0.00017,2]
[398929941,1766002255297,-178.695921,0.00017,2]
[398929942,1766002255307,-178.695921,0.00017,2]
[398929943,1766002255317,-178.695921,0.00017,2]
[398929944,1766002255327,-178.695921,0.00017,2]
[398929945,1766002255338,-500.0,0.0001711,2]
[398929946,1766002255351,-312.89624683,0.00017116,2]
[398929947,1766002255361,-1000.0,0.00017116,2]
[398929948,1766002255383,-1602.72166117,0.00017116,2]
[398929949,1766002255394,-2000.0,0.00017116,2]
[398929950,1766002255407,-1940.9809591,0.00017116,2]
[398929951,1766002255419,-2000.0,0.00017116,2]
[398929952,1766002255429,-1229.59137078,0.00017116,2]
[398929953,1766002255439,-1370.81113037,0.00017116,2]
[398929954,1766002255450,-500.0,0.00017129,2]
[398929955,1766002255460,-200.0,0.00017129,2]
[398929956,1766002255472,-1477.19,0.00017208,2]
[398929957,1766002255483,-500.0,0.00017247,2]
[398929958,1766002255493,-500.0,0.0001726,3]
[398929959,1766002255504,-500.0,0.00017318,2]
[398929960,1766002255514,-153.98,0.00017336,2]
[398929961,1766002255525,-500.0,0.00017384,2]
[398929962,1766002255536,-1477.30154985,0.00017482,2]
[398929963,1766002255547,-500.0,0.00017521,2]
[398929964,1766002255558,-500.0,0.00017534,4]
[398929965,1766002255568,-823.0,0.00017578,2]
[398929966,1766002255579,-823.0,0.00017578,2]
[398929967,1766002255589,-500.0,0.00017658,2]
[398929968,1766002255599,-522.13362004,0.00017664,2]
[398929969,1766002255609,-2500.0,0.00017664,2]
[398929970,1766002255620,-349.26270264,0.00017676,2]
[398929971,1766002255630,-200.0,0.00017677,2]
[398929972,1766002255640,-403.0,0.000177,5]
[398929973,1766002255651,-360.17,0.00017736,2]
[398929974,1766002255661,-500.0,0.00017795,2]
[398929975,1766002255671,-500.0,0.00017808,5]
[398929976,1766002255681,-500.0,0.00017808,2]
[398929977,1766002255692,-500.0,0.00017808,2]
[398929978,1766002255702,-500.0,0.00017808,2]
[398929979,1766002255712,-500.0,0.00017808,2]
[398929980,1766002255723,-500.0,0.00017808,2]
[398929981,1766002255734,-500.0,0.00017808,2]
[398929982,1766002255744,-500.0,0.00017808,2]
[398929983,1766002255754,-500.0,0.00017808,2]
[398929984,1766002255765,-500.0,0.00017808,2]
[398929985,1766002255775,-500.0,0.00017808,2]
[398929986,1766002255786,-500.0,0.00017808,2]
[398929987,1766002255796,-500.0,0.00017808,2]
[398929988,1766002255807,-500.0,0.00017808,2]
[398929989,1766002255818,-500.0,0.00017808,2]
[398929990,1766002255831,-500.0,0.00017808,2]
[398929991,1766002255844,-500.0,0.00017808,2]
[398929992,1766002255856,-500.0,0.00017808,2]
[398929993,1766002255868,-500.0,0.00017808,2]
[398929994,1766002255879,-392.35,0.00017808,2]
[398929995,1766002255890,-2316.34899587,0.00017899,2]
[398929996,1766002255901,-563.35119732,0.00017932,2]
[398929997,1766002255917,-151.0,0.00017997,2]
[398929998,1766002255927,-11498.44893353,0.00017999,2]
[398929999,1766002255938,-16350.82229886,0.00018,2]
[398930000,1766002255948,-238499.42910747,0.00018,2]
[398930001,1766002255981,-1154.88387201,0.00018,2]
[398930002,1766002255994,-664.02254682,0.00018,2]
[398930003,1766002256055,-777.45991394,0.00018,2]
[398930004,1766002256485,-569.93088227,0.00013299,2]
[398930005,1766002256499,-135.06911773,0.00013299,2]
[398930006,1766002256510,-497.33545786,0.00013436,2]
[398930007,1766002256587,-207.66454214,0.00013436,2]
[398930008,1766002256601,-651.21545786,0.00013573,2]
[398930009,1766002256615,-53.78454214,0.00013573,2]
[398930010,1766002256625,-500.0,0.00013698,2]
[398930011,1766002256636,-421.64722462,0.00013698,2]
[398930012,1766002256653,-78.35277538,0.00013698,2]
[398930013,1766002256664,-500.0,0.00013698,2]
[398930014,1766002256675,-705.0,0.0001371,2]
[398930015,1766002256686,-705.0,0.00013847,2]
[398930016,1766002256697,-705.0,0.00013984,2]
[398930017,1766002256707,-705.0,0.00014121,2]
[398930018,1766002256718,-705.0,0.00014258,2]
[398930019,1766002256729,-705.0,0.00014395,2]
[398930020,1766002256739,-705.0,0.00014532,2]
[398930021,1766002256750,-3291.6564937,0.00018,2]
[398930024,1766002334755,290.80846488,0.00018,30]
[398930025,1766002350357,500.5298232,0.00018,30]
[398930027,1766002351803,500.0,0.00018,30]
[398930028,1766002352145,500.0,0.00018,30]
[398930029,1766002352482,500.0,0.00017,30]
[398930030,1766002352789,843.67723457,0.00017,30]
[398930031,1766002354697,500.0,0.00018,30]
[398930032,1766002355027,500.0,0.00018,30]
[398930033,1766002355659,509.57335825,0.00017,30]
[398930034,1766002356717,500.0,0.00018,30]
[398930035,1766002358276,500.0,0.00018,30]
[398930036,1766002358376,500.0,0.00018,30]
[398930037,1766002358508,600.0,0.00017,30]
[398930047,1766003313537,-216.83,0.00012792,2]
[398930048,1766003313558,-200.0,0.00013177,2]
[398930049,1766003313579,-300.0,0.00013185,2]
[398930050,1766003345562,-1588.17,0.00013228,2]
[398930080,1766003432113,-300.0,0.00012862,2]
[398930084,1766003432122,-267.73601868,0.00012862,2]
[398930090,1766003432224,-932.26398132,0.00012862,2]
[398930091,1766003432233,-184.32987828,0.00012863,2]
[398930092,1766003432244,-6898.500249,0.00012863,2]
[398930093,1766003432255,-646.58736312,0.00012863,2]
[398930094,1766003432266,-387.105,0.00012863,2]
[398930095,1766003432278,-250.25070883,0.00012863,2]
[398930117,1766003438200,-21290.58297021,0.00012863,2]
[398930118,1766003438211,-992.47904245,0.00012863,2]
[398930119,1766003438222,-2138.23077622,0.00012863,2]
[398930120,1766003438233,-5774.48401189,0.00012863,2]
[398930121,1766003438243,-6000.0,0.000132,2]
[398930122,1766003438253,-1843.96,0.00013228,2]
[398930123,1766003438262,-250.0,0.00013248,2]
[398930124,1766003438272,-1600.0,0.00013269,2]
[398930125,1766003438282,-1200.0,0.0001337,2]
[398930126,1766003438291,-150.0,0.00013372,2]
[398930127,1766003438299,-151.5,0.00013372,2]
[398930128,1766003438308,-152.85,0.00013372,2]
[398930129,1766003438316,-152.97,0.00013372,2]
[398930130,1766003438324,-150.43,0.00013372,2]
[398930131,1766003438333,-151.4,0.00013372,2]
[398930132,1766003438343,-151.75,0.00013373,2]
[398930133,1766003438352,-150.59,0.00013373,2]
[398930134,1766003438361,-151.86,0.00013373,2]
[398930135,1766003438371,-151.57,0.00013373,2]
[398930136,1766003438380,-152.9,0.00013373,2]
[398930137,1766003438389,-150.1,0.00013373,2]
[398930138,1766003438398,-152.64,0.00013373,2]
[398930139,1766003438408,-152.55,0.00013373,2]
[398930140,1766003438417,-150.67,0.00013373,2]
[398930142,1766003438427,-151.06,0.00013373,2]
[398930144,1766003438436,-152.01,0.00013373,2]
[398930146,1766003438445,-151.12,0.00013373,2]
[398930148,1766003438454,-500.0,0.00013373,2]
[398930150,1766003438464,-500.0,0.00013373,2]
[398930152,1766003438474,-500.0,0.00013373,2]
[398930154,1766003438482,-500.0,0.00013373,2]
[398930156,1766003438493,-500.0,0.00013373,2]
[398930158,1766003438503,-500.0,0.00013373,2]
[398930160,1766003438511,-500.0,0.00013373,2]
[398930162,1766003438520,-500.0,0.00013373,2]
[398930164,1766003438529,-500.0,0.00013373,2]
[398930166,1766003438539,-500.0,0.00013373,2]
[398930168,1766003438548,-500.71124086,0.00013373,2]
[398930170,1766003438557,-500.0,0.00013373,2]
[398930172,1766003438567,-500.0,0.00013373,2]
[398930174,1766003438581,-4000.0,0.000135,2]
[398930176,1766003438591,-150.0,0.00013566,2]
[398930179,1766003438600,-299.99,0.00013566,2]
[398930182,1766003438610,-999.99,0.00013566,2]
[398930186,1766003438619,-500.0,0.00013599,2]
[398930189,1766003438629,-1000.0,0.00013599,2]
[398930192,1766003438638,-16103.14,0.000136,2]
[398930195,1766003438648,-9999.99,0.000136,2]
[398930198,1766003438658,-20000.02,0.000136,2]
[398930200,1766003438667,-3010.11,0.000136,2]
[398930202,1766003438677,-9999.99,0.000136,2]
[398930204,1766003438687,-150.99,0.000136,2]
[398930206,1766003438696,-150.99,0.000136,2]
[398930208,1766003438705,-3482.39,0.000136,2]
[398930210,1766003438716,-200.0,0.0001369,2]
[398930212,1766003438726,-500.0,0.0001369,2]
[398930214,1766003438737,-500.0,0.0001369,2]
[398930215,1766003438747,-500.0,0.0001369,2]
[398930216,1766003438759,-200.0,0.0001369,2]
[398930217,1766003438768,-500.0,0.0001369,2]
[398930218,1766003438778,-500.0,0.0001369,2]
[398930219,1766003438788,-500.0,0.0001369,2]
[398930220,1766003438798,-500.0,0.0001369,2]
[398930221,1766003438808,-500.0,0.0001369,2]
[398930222,1766003438817,-500.0,0.0001369,2]
[398930223,1766003438827,-500.0,0.0001369,2]
[398930224,1766003438836,-500.0,0.0001369,2]
[398930226,1766003438845,-500.0,0.0001369,2]
[398930227,1766003438855,-500.0,0.0001369,2]
[398930229,1766003438864,-500.0,0.0001369,2]
[398930231,1766003438873,-500.0,0.0001369,2]
[398930233,1766003438883,-500.0,0.0001369,2]
[398930235,1766003438892,-500.0,0.0001369,2]
[398930237,1766003438901,-500.0,0.0001369,2]
[398930239,1766003438911,-500.0,0.0001369,2]
[398930241,1766003438920,-500.0,0.0001369,2]
[398930243,1766003438929,-200.0,0.0001369,2]
[398930245,1766003438939,-500.0,0.0001369,2]
[398930248,1766003438948,-500.0,0.0001369,2]
[398930249,1766003438957,-500.0,0.0001369,2]
[398930251,1766003438967,-500.0,0.0001369,2]
[398930254,1766003438976,-467.83399074,0.0001369,2]
[398930256,1766003438986,-151.0,0.0001369,2]
[398930258,1766003438996,-151.0,0.0001369,2]
[398930260,1766003439005,-200.27838926,0.0001369,2]
[398930262,1766003439014,-500.0,0.0001369,2]
[398930264,1766003439023,-151.0,0.0001369,2]
[398930266,1766003439032,-151.0,0.0001369,2]
[398930268,1766003439041,-151.0,0.0001369,2]
[398930270,1766003439050,-151.0,0.0001369,2]
[398930272,1766003439059,-151.0,0.0001369,2]
[398930274,1766003439068,-151.0,0.0001369,2]
[398930276,1766003439077,-151.0,0.0001369,2]
[398930278,1766003439087,-151.0,0.0001369,2]
[398930280,1766003439096,-151.0,0.0001369,2]
[398930282,1766003439105,-151.0,0.0001369,2]
[398930284,1766003439114,-151.0,0.0001369,2]
[398930286,1766003439123,-151.0,0.0001369,2]
[398930288,1766003439133,-151.0,0.0001369,2]
[398930290,1766003439142,-232.75,0.00013697,2]
[398930292,1766003439151,-500.0,0.00013698,2]
[398930294,1766003439161,-500.0,0.00013698,2]
[398930296,1766003439170,-500.0,0.00013698,2]
[398930298,1766003439179,-500.0,0.00013698,2]
[398930300,1766003439190,-500.0,0.00013698,2]
[398930302,1766003439200,-499.99999999,0.00013698,2]
[398930304,1766003439209,-500.0,0.00013698,2]
[398930306,1766003439219,-213.69506257,0.00013698,2]
[398930308,1766003439228,-323.78320815,0.00013698,2]
[398930310,1766003439237,-500.0,0.00013698,2]
[398930312,1766003439246,-500.0,0.00013698,2]
[398930314,1766003439256,-431.17177505,0.00013698,2]
[398930316,1766003439265,-500.0,0.00013698,2]
[398930318,1766003439274,-500.0,0.00013698,2]
[398930320,1766003439284,-150.86,0.00013698,2]
[398930322,1766003439293,-195.95,0.00013699,2]
[398930323,1766003439302,-163.29,0.00013699,2]
[398930326,1766003439312,-816.49,0.00013699,2]
[398930328,1766003439323,-1126.0,0.00013715,2]
[398930330,1766003439332,-1107.0,0.00013743,2]
[398930332,1766003439341,-1000.0,0.00013746,2]
[398930334,1766003439350,-150.0,0.00013746,2]
[398930336,1766003439359,-166.66,0.00013766,2]
[398930338,1766003439369,-869.0,0.0001377,2]
[398930340,1766003439378,-294.0,0.00013785,2]
[398930342,1766003439388,-500.0,0.00013849,2]
[398930344,1766003439397,-500.0,0.00013849,2]
[398930346,1766003439406,-500.0,0.00013849,2]
[398930348,1766003439415,-500.0,0.00013849,2]
[398930350,1766003439425,-500.0,0.00013849,2]
[398930352,1766003439434,-500.0,0.00013849,2]
[398930354,1766003439444,-500.0,0.00013849,2]
[398930356,1766003439453,-500.0,0.00013849,2]
[398930358,1766003439463,-500.0,0.00013849,2]
[398930360,1766003439473,-500.0,0.00013849,2]
[398930362,1766003439482,-500.0,0.00013849,2]
[398930364,1766003439493,-500.0,0.00013849,2]
[398930366,1766003439503,-500.0,0.00013849,2]
[398930368,1766003439513,-500.0,0.00013849,2]
[398930370,1766003439522,-500.0,0.00013849,2]
[398930372,1766003439532,-500.0,0.00013849,2]
[398930374,1766003439542,-500.0,0.00013849,2]
[398930376,1766003439551,-500.0,0.00013849,2]
[398930379,1766003439560,-211.9059115,0.00013849,2]
[398930381,1766003439570,-500.0,0.00013873,2]
[398930383,1766003439579,-470.0,0.00013908,2]
[398930384,1766003439589,-500.0,0.00013921,2]
[398930387,1766003439598,-500.0,0.00013921,2]
[398930389,1766003439607,-500.0,0.00013921,2]
[398930391,1766003439616,-1000.0,0.00013921,2]
[398930393,1766003439626,-1000.0,0.00013921,2]
[398930394,1766003439635,-1000.98827769,0.00013921,2]
[398930397,1766003439645,-1000.0,0.00013921,2]
[398930399,1766003439654,-1045.7565145,0.00013921,2]
[398930401,1766003439664,-1000.0,0.00013921,2]
[398930402,1766003439673,-500.0,0.00013921,2]
[398930404,1766003439683,-886.0,0.0001393,2]
[398930406,1766003439692,-457.0,0.00013936,2]
[398930408,1766003439701,-1168.0,0.00013958,2]
[398930410,1766003439713,-380.0,0.00013963,2]
[398930412,1766003439724,-3471.76,0.0001398,2]
[398930415,1766003439733,-472.0,0.00013985,2]